[Event "*** Titled Tuesday Blitz"]
[Site "Chess.com"]
[Date "2020.02.04"]
[Round "5"]
[White "Kirill_Kopenkin"]
[Black "RaunakSadhwani2005"]
[Result "0-1"]
[WhiteElo "2545"]
[BlackElo "2742"]
[TimeControl "180+2"]
[EndTime "10:07:43 PST"]
[Termination "RaunakSadhwani2005 won by resignation"]

1. e4 {[%clk 0:03:01.9]} 1... c5 {[%clk 0:03:00.5]} 2. Nf3 {[%clk 0:03:03]} 2...
Nc6 {[%clk 0:03:00.7]} 3. d4 {[%clk 0:03:04.6]} 3... cxd4 {[%clk 0:03:01.6]} 4.
Nxd4 {[%clk 0:03:06.5]} 4... Nf6 {[%clk 0:03:03.2]} 5. Nc3 {[%clk 0:03:07.7]}
5... d6 {[%clk 0:03:04.7]} 6. f3 {[%clk 0:03:08.6]} 6... e5 {[%clk 0:03:02.9]}
7. Nb3 {[%clk 0:03:08]} 7... Be6 {[%clk 0:03:02.5]} 8. Nd5 {[%clk 0:03:02.1]}
8... Bxd5 {[%clk 0:03:02.1]} 9. exd5 {[%clk 0:03:04]} 9... Nb8 {[%clk
0:03:03.9]} 10. Be3 {[%clk 0:02:52]} 10... Nbd7 {[%clk 0:03:04.9]} 11. Qd2
{[%clk 0:02:52.7]} 11... h5 {[%clk 0:03:03.9]} 12. a4 {[%clk 0:02:40.2]} 12...
g6 {[%clk 0:02:56.9]} 13. a5 {[%clk 0:02:30.6]} 13... a6 {[%clk 0:02:57.5]} 14.
Be2 {[%clk 0:02:24.6]} 14... Bg7 {[%clk 0:02:56.9]} 15. O-O {[%clk 0:02:25.5]}
15... O-O {[%clk 0:02:58.2]} 16. c4 {[%clk 0:02:25.7]} 16... Rc8 {[%clk
0:02:59.1]} 17. Rac1 {[%clk 0:02:18.6]} 17... Qe7 {[%clk 0:02:50.9]} 18. Rc2
{[%clk 0:02:02.8]} 18... Rfd8 {[%clk 0:02:30.5]} 19. Nc1 {[%clk 0:01:46.9]}
19... Ne8 {[%clk 0:02:22.9]} 20. b4 {[%clk 0:01:45.8]} 20... f5 {[%clk
0:02:24.4]} 21. Nb3 {[%clk 0:01:33.8]} 21... f4 {[%clk 0:01:45.9]} 22. Bf2
{[%clk 0:01:33.4]} 22... Ndf6 {[%clk 0:01:36.6]} 23. Bd3 {[%clk 0:01:15.5]}
23... Kh7 {[%clk 0:01:28.7]} 24. Re1 {[%clk 0:01:13]} 24... Qf7 {[%clk
0:01:27.6]} 25. Qe2 {[%clk 0:00:50.5]} 25... Bf8 {[%clk 0:01:17.4]} 26. Nd2
{[%clk 0:00:50.5]} 26... Ng7 {[%clk 0:01:16.3]} 27. g4 {[%clk 0:00:38]} 27...
fxg3 {[%clk 0:01:04.8]} 28. hxg3 {[%clk 0:00:38.9]} 28... Nf5 {[%clk 0:01:06.5]}
29. g4 {[%clk 0:00:21.4]} 29... Nd4 {[%clk 0:01:05.3]} 30. Bxd4 {[%clk
0:00:20.7]} 30... exd4 {[%clk 0:01:07.2]} 31. Ne4 {[%clk 0:00:22.1]} 31... Nxe4
{[%clk 0:00:55.6]} 32. Bxe4 {[%clk 0:00:24]} 32... hxg4 {[%clk 0:00:46.6]} 33.
fxg4 {[%clk 0:00:24.7]} 33... Bh6 {[%clk 0:00:40.6]} 34. Qh2 {[%clk 0:00:21.9]}
34... Kg7 {[%clk 0:00:37.6]} 35. Rf2 {[%clk 0:00:21.7]} 35... Qe7 {[%clk
0:00:35.6]} 36. g5 {[%clk 0:00:14.5]} 36... Bxg5 {[%clk 0:00:22.7]} 37. Qg2
{[%clk 0:00:10.4]} 37... Rf8 {[%clk 0:00:17.4]} 38. Rfe2 {[%clk 0:00:08.2]}
38... Qf6 {[%clk 0:00:16.8]} 39. Bd3 {[%clk 0:00:08.7]} 39... Be3+ {[%clk
0:00:17.7]} 40. Rxe3 {[%clk 0:00:08.6]} 40... dxe3 {[%clk 0:00:19.6]} 41. Rxe3
{[%clk 0:00:10]} 41... Rce8 {[%clk 0:00:21.1]} 42. Rg3 {[%clk 0:00:08.8]} 42...
Re1+ {[%clk 0:00:20.2]} 43. Kh2 {[%clk 0:00:10.3]} 43... Rh8+ {[%clk 0:00:20.9]}
44. Rh3 {[%clk 0:00:11.8]} 44... Qf4+ {[%clk 0:00:21.8]} 45. Qg3 {[%clk
0:00:13.2]} 45... Rxh3+ {[%clk 0:00:22.5]} 46. Kxh3 {[%clk 0:00:14.3]} 46... Re3
{[%clk 0:00:23.1]} 0-1

[Event "*** Titled Tuesday Blitz"]
[Site "Chess.com"]
[Date "2020.02.04"]
[Round "5"]
[White "GMMatamoros"]
[Black "arminmusovic"]
[Result "1-0"]
[WhiteElo "2439"]
[BlackElo "2546"]
[TimeControl "180+2"]
[EndTime "10:07:53 PST"]
[Termination "GMMatamoros won by resignation"]

1. Nf3 {[%clk 0:03:01.9]} 1... Nf6 {[%clk 0:02:55.2]} 2. c4 {[%clk 0:03:02.6]}
2... e6 {[%clk 0:02:52.4]} 3. g3 {[%clk 0:03:03.4]} 3... a6 {[%clk 0:02:49.5]}
4. Bg2 {[%clk 0:03:04]} 4... h6 {[%clk 0:02:51.1]} 5. O-O {[%clk 0:03:03.8]}
5... d5 {[%clk 0:02:52.6]} 6. b3 {[%clk 0:03:02]} 6... Be7 {[%clk 0:02:53.5]} 7.
Bb2 {[%clk 0:03:02.3]} 7... O-O {[%clk 0:02:54.9]} 8. d4 {[%clk 0:02:58.9]} 8...
c5 {[%clk 0:02:54.2]} 9. cxd5 {[%clk 0:02:58.5]} 9... exd5 {[%clk 0:02:54.8]}
10. Nc3 {[%clk 0:02:49.3]} 10... Nc6 {[%clk 0:02:52.4]} 11. Rc1 {[%clk
0:02:43.6]} 11... cxd4 {[%clk 0:02:24.6]} 12. Nxd4 {[%clk 0:02:42.6]} 12... Bg4
{[%clk 0:02:26]} 13. h3 {[%clk 0:02:33]} 13... Bh5 {[%clk 0:02:20.3]} 14. Nxc6
{[%clk 0:02:26.5]} 14... bxc6 {[%clk 0:02:21]} 15. Na4 {[%clk 0:02:27.9]} 15...
Qd6 {[%clk 0:01:59.1]} 16. Bd4 {[%clk 0:01:57]} 16... Nd7 {[%clk 0:01:55]} 17.
Qd2 {[%clk 0:01:52.5]} 17... Bf6 {[%clk 0:01:46.8]} 18. e3 {[%clk 0:01:45.1]}
18... Rfe8 {[%clk 0:01:37.8]} 19. Rc3 {[%clk 0:01:35.8]} 19... Rac8 {[%clk
0:00:57.8]} 20. Rfc1 {[%clk 0:01:34.3]} 20... Nb8 {[%clk 0:00:43]} 21. Nc5
{[%clk 0:01:14.9]} 21... Bg6 {[%clk 0:00:38]} 22. b4 {[%clk 0:01:11.1]} 22...
Bf5 {[%clk 0:00:28.1]} 23. Ra3 {[%clk 0:01:04.4]} 23... Be5 {[%clk 0:00:22]} 24.
Nxa6 {[%clk 0:00:57.1]} 24... Nxa6 {[%clk 0:00:21.5]} 25. Rxa6 {[%clk 0:00:59]}
25... Bxd4 {[%clk 0:00:21.9]} 26. Qxd4 {[%clk 0:00:55]} 26... Be4 {[%clk
0:00:23]} 27. Qc5 {[%clk 0:00:44.3]} 27... Qd7 {[%clk 0:00:23.3]} 28. Rxc6
{[%clk 0:00:43.5]} 28... Bxg2 {[%clk 0:00:22.9]} 29. Kxg2 {[%clk 0:00:36]} 29...
Ra8 {[%clk 0:00:23.9]} 30. Rd6 {[%clk 0:00:30.8]} 30... Qb7 {[%clk 0:00:23.6]}
31. Qxd5 {[%clk 0:00:29.1]} 31... Qxb4 {[%clk 0:00:23.7]} 32. Rc7 {[%clk
0:00:24.9]} 32... Rf8 {[%clk 0:00:24.6]} 33. Rxf7 {[%clk 0:00:21]} 33... Kh8
{[%clk 0:00:22.8]} 34. Rxf8+ {[%clk 0:00:20.8]} 34... Rxf8 {[%clk 0:00:23.7]}
35. Rd8 {[%clk 0:00:21.3]} 35... Rxd8 {[%clk 0:00:21.9]} 36. Qxd8+ {[%clk
0:00:23.2]} 36... Kh7 {[%clk 0:00:23.5]} 37. Qd5 {[%clk 0:00:23.9]} 37... Qa3
{[%clk 0:00:23.4]} 38. h4 {[%clk 0:00:24.3]} 38... Kh8 {[%clk 0:00:22]} 39. e4
{[%clk 0:00:25.2]} 39... Qe7 {[%clk 0:00:16.9]} 40. a4 {[%clk 0:00:24]} 40...
Qa7 {[%clk 0:00:16.3]} 41. a5 {[%clk 0:00:24.1]} 41... Kh7 {[%clk 0:00:13.1]}
42. h5 {[%clk 0:00:24.5]} 42... g6 {[%clk 0:00:12.5]} 43. hxg6+ {[%clk
0:00:21.7]} 43... Kxg6 {[%clk 0:00:14.4]} 44. Qc6+ {[%clk 0:00:23.1]} 44... Kg7
{[%clk 0:00:14.7]} 45. a6 {[%clk 0:00:24]} 45... Qd4 {[%clk 0:00:15.5]} 46. Qb7+
{[%clk 0:00:24.7]} 46... Kg6 {[%clk 0:00:16.2]} 47. a7 {[%clk 0:00:25.8]} 47...
Kg5 {[%clk 0:00:16.6]} 48. a8=Q {[%clk 0:00:26.4]} 48... Qf6 {[%clk 0:00:17.9]}
49. Qg8+ {[%clk 0:00:26.7]} 49... Kh5 {[%clk 0:00:17.4]} 50. Qbf7+ {[%clk
0:00:27.1]} 50... Qxf7 {[%clk 0:00:18.4]} 51. Qxf7+ {[%clk 0:00:29]} 51... Kg5
{[%clk 0:00:20.3]} 1-0

[Event "*** Titled Tuesday Blitz"]
[Site "Chess.com"]
[Date "2020.02.04"]
[Round "5"]
[White "bhavesh1810"]
[Black "Bulldog167"]
[Result "0-1"]
[WhiteElo "2130"]
[BlackElo "2708"]
[TimeControl "180+2"]
[EndTime "10:07:58 PST"]
[Termination "Bulldog167 won by resignation"]

1. e4 {[%clk 0:03:01.9]} 1... c5 {[%clk 0:02:59.6]} 2. Nf3 {[%clk 0:03:02.6]}
2... d6 {[%clk 0:03:01.1]} 3. d4 {[%clk 0:03:04]} 3... cxd4 {[%clk 0:03:03]} 4.
Qxd4 {[%clk 0:03:05.8]} 4... Nf6 {[%clk 0:03:04.2]} 5. Nc3 {[%clk 0:03:06.2]}
5... Nc6 {[%clk 0:02:57.7]} 6. Bb5 {[%clk 0:03:06.6]} 6... Bd7 {[%clk 0:02:59]}
7. Bxc6 {[%clk 0:03:07.7]} 7... Bxc6 {[%clk 0:03:00.9]} 8. Bg5 {[%clk
0:03:08.1]} 8... e6 {[%clk 0:02:37.7]} 9. O-O-O {[%clk 0:03:07]} 9... Be7 {[%clk
0:02:37.4]} 10. Rhe1 {[%clk 0:03:08]} 10... Qa5 {[%clk 0:02:33]} 11. Kb1 {[%clk
0:03:04.7]} 11... O-O {[%clk 0:02:30.1]} 12. Qd2 {[%clk 0:03:03]} 12... Qc7
{[%clk 0:02:17.1]} 13. Nd4 {[%clk 0:03:04]} 13... a6 {[%clk 0:02:10.5]} 14. f3
{[%clk 0:03:05.3]} 14... b5 {[%clk 0:02:11.6]} 15. Nxc6 {[%clk 0:03:05.7]} 15...
Qxc6 {[%clk 0:02:12.7]} 16. Ne2 {[%clk 0:03:07.6]} 16... Rfd8 {[%clk 0:02:10.6]}
17. Nd4 {[%clk 0:03:08.5]} 17... Qb7 {[%clk 0:02:10.2]} 18. h4 {[%clk
0:03:08.9]} 18... Rac8 {[%clk 0:02:06.8]} 19. g4 {[%clk 0:03:08]} 19... Rc4
{[%clk 0:01:59.2]} 20. h5 {[%clk 0:03:04.1]} 20... Rdc8 {[%clk 0:01:55.3]} 21.
Rc1 {[%clk 0:03:02.7]} 21... b4 {[%clk 0:01:53.9]} 22. Nb3 {[%clk 0:02:57.1]}
22... Qb5 {[%clk 0:01:51.9]} 23. Be3 {[%clk 0:02:50.2]} 23... Nd7 {[%clk
0:01:43.9]} 24. Nd4 {[%clk 0:02:47.2]} 24... Qb7 {[%clk 0:01:39.5]} 25. Red1
{[%clk 0:02:44.9]} 25... R4c7 {[%clk 0:01:22.5]} 26. h6 {[%clk 0:02:29]} 26...
g6 {[%clk 0:01:23.4]} 27. Bg5 {[%clk 0:02:30.3]} 27... Bf8 {[%clk 0:01:20.1]}
28. Nb3 {[%clk 0:02:23.3]} 28... Ne5 {[%clk 0:01:19.2]} 29. Qe2 {[%clk
0:02:15.9]} 29... a5 {[%clk 0:01:12.1]} 30. f4 {[%clk 0:02:13.2]} 30... Nc4
{[%clk 0:01:13]} 31. f5 {[%clk 0:02:14.7]} 31... a4 {[%clk 0:01:11.2]} 32. Nd4
{[%clk 0:02:16]} 32... e5 {[%clk 0:00:41.8]} 33. Nf3 {[%clk 0:02:16.8]} 33...
Na3+ {[%clk 0:00:42.7]} 34. Ka1 {[%clk 0:02:09.9]} 34... Rxc2 {[%clk 0:00:37.6]}
35. Qd3 {[%clk 0:02:04.6]} 35... b3 {[%clk 0:00:25.2]} 36. fxg6 {[%clk
0:01:57.6]} 36... hxg6 {[%clk 0:00:23.5]} 37. h7+ {[%clk 0:01:55.9]} 37... Kxh7
{[%clk 0:00:24.9]} 38. Rh1+ {[%clk 0:01:56.3]} 38... Kg8 {[%clk 0:00:26.5]} 39.
Rcg1 {[%clk 0:01:33.8]} 39... Rxb2 {[%clk 0:00:15.4]} 40. Kxb2 {[%clk
0:01:17.6]} 40... Rc2+ {[%clk 0:00:13.7]} 41. Qxc2 {[%clk 0:01:14.8]} 41...
bxc2+ {[%clk 0:00:12.6]} 42. Kc1 {[%clk 0:01:02.8]} 42... Nc4 {[%clk 0:00:12.6]}
43. Kxc2 {[%clk 0:00:59.9]} 43... Qxe4+ {[%clk 0:00:13.6]} 44. Kc3 {[%clk
0:01:00.1]} 44... d5 {[%clk 0:00:09.2]} 45. Nd2 {[%clk 0:00:58.7]} 45... Qd4+
{[%clk 0:00:08.1]} 46. Kc2 {[%clk 0:00:59.6]} 46... Nxd2 {[%clk 0:00:06.2]} 47.
Bxd2 {[%clk 0:01:01.5]} 47... Qc4+ {[%clk 0:00:06.3]} 48. Kb1 {[%clk 0:01:01.8]}
48... Bc5 {[%clk 0:00:04.8]} 49. Rc1 {[%clk 0:00:55.2]} 49... Qb5+ {[%clk
0:00:06]} 50. Kc2 {[%clk 0:00:55.4]} 50... e4 {[%clk 0:00:07.5]} 51. Rb1 {[%clk
0:00:51.3]} 51... Qd3+ {[%clk 0:00:08.2]} 52. Kc1 {[%clk 0:00:49.5]} 52... Ba3+
{[%clk 0:00:08.5]} 53. Rb2 {[%clk 0:00:50.7]} 53... Bxb2+ {[%clk 0:00:09.7]} 54.
Kxb2 {[%clk 0:00:52.6]} 0-1

[Event "*** Titled Tuesday Blitz"]
[Site "Chess.com"]
[Date "2020.02.04"]
[Round "5"]
[White "DanielNaroditsky"]
[Black "hanzo_hasashi1"]
[Result "1/2-1/2"]
[WhiteElo "3131"]
[BlackElo "2871"]
[TimeControl "180+2"]
[EndTime "10:08:04 PST"]
[Termination "Game drawn by repetition"]

1. Nf3 {[%clk 0:03:01.5]} 1... Nf6 {[%clk 0:03:00.4]} 2. g3 {[%clk 0:03:03]}
2... d5 {[%clk 0:03:00.8]} 3. Bg2 {[%clk 0:03:04.2]} 3... c6 {[%clk 0:03:00.3]}
4. O-O {[%clk 0:03:05.3]} 4... Bg4 {[%clk 0:02:57.8]} 5. d3 {[%clk 0:03:07.2]}
5... Nbd7 {[%clk 0:02:54.4]} 6. c4 {[%clk 0:03:08.5]} 6... dxc4 {[%clk
0:02:49.4]} 7. dxc4 {[%clk 0:03:09.2]} 7... e5 {[%clk 0:02:48]} 8. Nc3 {[%clk
0:03:07.5]} 8... Bc5 {[%clk 0:02:40.4]} 9. Qc2 {[%clk 0:03:06.1]} 9... O-O
{[%clk 0:02:37.4]} 10. Nh4 {[%clk 0:03:06.2]} 10... Be6 {[%clk 0:02:23.5]} 11.
b3 {[%clk 0:03:05.8]} 11... Ne8 {[%clk 0:02:05.6]} 12. Nf3 {[%clk 0:02:33.1]}
12... f6 {[%clk 0:02:02.5]} 13. Bb2 {[%clk 0:02:31.5]} 13... Be7 {[%clk
0:01:55]} 14. Rad1 {[%clk 0:02:32.2]} 14... Nd6 {[%clk 0:01:50.3]} 15. Ba3
{[%clk 0:02:05]} 15... Nf7 {[%clk 0:01:49.5]} 16. Bb2 {[%clk 0:01:56.5]} 16...
Qc7 {[%clk 0:01:44.7]} 17. Nh4 {[%clk 0:01:50.3]} 17... Rfe8 {[%clk 0:01:35.2]}
18. Be4 {[%clk 0:01:51.4]} 18... Ng5 {[%clk 0:01:31.2]} 19. Bf5 {[%clk
0:01:51.1]} 19... Bf8 {[%clk 0:01:24.1]} 20. Bxe6+ {[%clk 0:01:31.5]} 20... Nxe6
{[%clk 0:01:22.6]} 21. Ne4 {[%clk 0:01:32.9]} 21... Ndc5 {[%clk 0:01:16.6]} 22.
Nf5 {[%clk 0:01:29.2]} 22... Nxe4 {[%clk 0:01:03]} 23. Qxe4 {[%clk 0:01:31.1]}
23... g6 {[%clk 0:01:00.7]} 24. Ne3 {[%clk 0:01:32.5]} 24... Rad8 {[%clk
0:00:51.1]} 25. Rxd8 {[%clk 0:01:17.7]} 25... Rxd8 {[%clk 0:00:50.1]} 26. Qc2
{[%clk 0:00:56.4]} 26... Bb4 {[%clk 0:00:41]} 27. Rd1 {[%clk 0:00:54.7]} 27...
Nd4 {[%clk 0:00:41]} 28. Bxd4 {[%clk 0:00:55]} 28... Rxd4 {[%clk 0:00:40.1]} 29.
Rxd4 {[%clk 0:00:55.5]} 29... exd4 {[%clk 0:00:41.1]} 30. Ng2 {[%clk 0:00:57.3]}
30... f5 {[%clk 0:00:38.2]} 31. Nf4 {[%clk 0:00:57]} 31... Qd6 {[%clk
0:00:35.5]} 32. Qd3 {[%clk 0:00:57.2]} 32... Qe5 {[%clk 0:00:33.7]} 33. Qf3
{[%clk 0:00:44]} 33... Bd6 {[%clk 0:00:26.3]} 34. Nd3 {[%clk 0:00:36.9]} 34...
Qe4 {[%clk 0:00:24]} 35. Kf1 {[%clk 0:00:27.5]} 35... Kg7 {[%clk 0:00:22.3]} 36.
Ke1 {[%clk 0:00:28.4]} 36... h5 {[%clk 0:00:19.7]} 37. h4 {[%clk 0:00:25.1]}
37... Qxf3 {[%clk 0:00:17]} 38. exf3 {[%clk 0:00:26.3]} 38... f4 {[%clk
0:00:18.2]} 39. g4 {[%clk 0:00:18.8]} 39... g5 {[%clk 0:00:19.2]} 40. hxg5
{[%clk 0:00:17.8]} 40... h4 {[%clk 0:00:19.5]} 41. Kf1 {[%clk 0:00:15.5]} 41...
Kg6 {[%clk 0:00:20.1]} 42. Kg2 {[%clk 0:00:14.5]} 42... Kxg5 {[%clk 0:00:21.3]}
43. Kh3 {[%clk 0:00:16.4]} 43... b6 {[%clk 0:00:19.7]} 44. Kg2 {[%clk
0:00:15.2]} 44... Be7 {[%clk 0:00:17.5]} 45. Kh3 {[%clk 0:00:14.4]} 45... Bd6
{[%clk 0:00:16.3]} 46. Kg2 {[%clk 0:00:15.6]} 46... Be7 {[%clk 0:00:17]} 47. Kh3
{[%clk 0:00:17.1]} 47... Bd6 {[%clk 0:00:18]} 1/2-1/2

[Event "*** Titled Tuesday Blitz"]
[Site "Chess.com"]
[Date "2020.02.04"]
[Round "5"]
[White "Quiet_Desperation"]
[Black "Snegokhod"]
[Result "0-1"]
[WhiteElo "2431"]
[BlackElo "2630"]
[TimeControl "180+2"]
[EndTime "10:08:07 PST"]
[Termination "Snegokhod won by resignation"]

1. e4 {[%clk 0:03:01.9]} 1... c5 {[%clk 0:02:59.8]} 2. Nf3 {[%clk 0:03:02.5]}
2... d6 {[%clk 0:02:58.7]} 3. d4 {[%clk 0:03:03.4]} 3... cxd4 {[%clk 0:02:59.2]}
4. Nxd4 {[%clk 0:03:05.3]} 4... Nf6 {[%clk 0:03:00.4]} 5. Nc3 {[%clk 0:03:06.5]}
5... a6 {[%clk 0:03:00.8]} 6. Bg5 {[%clk 0:03:07.2]} 6... e6 {[%clk 0:03:00.7]}
7. f3 {[%clk 0:03:08]} 7... Be7 {[%clk 0:02:59.8]} 8. Qd2 {[%clk 0:03:08.8]}
8... Qc7 {[%clk 0:02:57.1]} 9. O-O-O {[%clk 0:03:09.1]} 9... Nbd7 {[%clk
0:02:57.9]} 10. Be3 {[%clk 0:03:09.8]} 10... b5 {[%clk 0:02:57.1]} 11. g4 {[%clk
0:03:08.6]} 11... h6 {[%clk 0:02:50.1]} 12. Kb1 {[%clk 0:03:08]} 12... b4 {[%clk
0:02:48.7]} 13. Nce2 {[%clk 0:03:08.5]} 13... d5 {[%clk 0:02:49.3]} 14. Ng3
{[%clk 0:03:02.3]} 14... Bb7 {[%clk 0:02:37.8]} 15. Bd3 {[%clk 0:02:51.2]} 15...
Nc5 {[%clk 0:02:30.6]} 16. e5 {[%clk 0:02:46.2]} 16... Nfd7 {[%clk 0:02:17.3]}
17. f4 {[%clk 0:02:46.2]} 17... Nxd3 {[%clk 0:02:13.1]} 18. cxd3 {[%clk
0:02:45.9]} 18... Bc5 {[%clk 0:02:03.2]} 19. Rc1 {[%clk 0:02:43.8]} 19... Qb6
{[%clk 0:02:04.4]} 20. Nge2 {[%clk 0:02:40.2]} 20... a5 {[%clk 0:02:00.6]} 21.
Rhe1 {[%clk 0:02:21.7]} 21... Ba6 {[%clk 0:01:50.1]} 22. Bg1 {[%clk 0:01:55.7]}
22... Rc8 {[%clk 0:01:50.1]} 23. Nf3 {[%clk 0:01:30.4]} 23... Bxg1 {[%clk
0:01:42.1]} 24. Nexg1 {[%clk 0:01:30.6]} 24... Rxc1+ {[%clk 0:01:29.3]} 25. Rxc1
{[%clk 0:01:28.1]} 25... Nc5 {[%clk 0:01:29.8]} 26. Ne1 {[%clk 0:01:21.1]} 26...
O-O {[%clk 0:01:22.5]} 27. f5 {[%clk 0:01:22.1]} 27... exf5 {[%clk 0:01:17.8]}
28. gxf5 {[%clk 0:01:22.9]} 28... d4 {[%clk 0:01:08.5]} 29. f6 {[%clk
0:01:18.5]} 29... Nd7 {[%clk 0:01:02.8]} 30. fxg7 {[%clk 0:01:16.9]} 30... Re8
{[%clk 0:00:58.9]} 31. Ngf3 {[%clk 0:01:09.9]} 31... Nxe5 {[%clk 0:00:59.8]} 32.
Nxe5 {[%clk 0:01:10.9]} 32... Rxe5 {[%clk 0:01:00.5]} 33. Qf4 {[%clk 0:01:07.8]}
33... Rg5 {[%clk 0:00:52]} 34. Nf3 {[%clk 0:01:00.3]} 34... Bxd3+ {[%clk
0:00:52.3]} 35. Ka1 {[%clk 0:01:00.8]} 35... Rf5 {[%clk 0:00:50.3]} 36. Qg3
{[%clk 0:00:55.8]} 36... Qg6 {[%clk 0:00:48.9]} 37. Qb8+ {[%clk 0:00:47.8]}
37... Kxg7 {[%clk 0:00:48.4]} 38. Nh4 {[%clk 0:00:43.5]} 38... Qg5 {[%clk
0:00:40.3]} 39. Nxf5+ {[%clk 0:00:43.9]} 39... Bxf5 {[%clk 0:00:39.9]} 40. Rd1
{[%clk 0:00:19]} 40... d3 {[%clk 0:00:40.3]} 41. Qe5+ {[%clk 0:00:18.9]} 41...
Qf6 {[%clk 0:00:36.7]} 42. Rg1+ {[%clk 0:00:17.8]} 42... Bg6 {[%clk 0:00:37.4]}
43. Qe3 {[%clk 0:00:17.6]} 43... a4 {[%clk 0:00:37]} 44. h4 {[%clk 0:00:12]}
44... a3 {[%clk 0:00:37.5]} 45. Qd2 {[%clk 0:00:13.3]} 45... Qxh4 {[%clk
0:00:35.6]} 46. Qxd3 {[%clk 0:00:06.7]} 46... Qf2 {[%clk 0:00:25.4]} 47. Rxg6+
{[%clk 0:00:05.5]} 47... fxg6 {[%clk 0:00:25.2]} 48. Qd7+ {[%clk 0:00:06.7]}
48... Qf7 {[%clk 0:00:23.3]} 49. Qd4+ {[%clk 0:00:07.3]} 49... Kh7 {[%clk
0:00:22.5]} 50. bxa3 {[%clk 0:00:07.4]} 50... bxa3 {[%clk 0:00:22.5]} 51. Kb1
{[%clk 0:00:08.2]} 51... h5 {[%clk 0:00:18.3]} 52. Qb4 {[%clk 0:00:08.4]} 0-1

[Event "*** Titled Tuesday Blitz"]
[Site "Chess.com"]
[Date "2020.02.04"]
[Round "5"]
[White "Zq1"]
[Black "MasterKroket"]
[Result "1-0"]
[WhiteElo "2547"]
[BlackElo "2408"]
[TimeControl "180+2"]
[EndTime "10:08:09 PST"]
[Termination "Zq1 won by resignation"]

1. d4 {[%clk 0:03:01.9]} 1... Nf6 {[%clk 0:02:59.7]} 2. c4 {[%clk 0:03:02.6]}
2... e6 {[%clk 0:03:00.6]} 3. Nc3 {[%clk 0:03:01.6]} 3... Bb4 {[%clk 0:03:00.9]}
4. a3 {[%clk 0:03:01]} 4... Bxc3+ {[%clk 0:03:01.3]} 5. bxc3 {[%clk 0:03:02.7]}
5... O-O {[%clk 0:03:02.3]} 6. f3 {[%clk 0:03:01.1]} 6... c5 {[%clk 0:03:03]} 7.
e4 {[%clk 0:02:59.3]} 7... d6 {[%clk 0:02:58]} 8. Bg5 {[%clk 0:02:59]} 8... e5
{[%clk 0:02:56.3]} 9. d5 {[%clk 0:02:49.7]} 9... Qa5 {[%clk 0:02:50.7]} 10. Qd2
{[%clk 0:02:49.3]} 10... Nbd7 {[%clk 0:02:40.1]} 11. Bd3 {[%clk 0:02:48]} 11...
Qa4 {[%clk 0:02:34]} 12. Ne2 {[%clk 0:02:45.7]} 12... b5 {[%clk 0:02:31.7]} 13.
cxb5 {[%clk 0:02:44.2]} 13... c4 {[%clk 0:02:30.7]} 14. Bc2 {[%clk 0:02:41.8]}
14... Qxb5 {[%clk 0:02:31.5]} 15. O-O {[%clk 0:02:40.9]} 15... h6 {[%clk
0:02:29.3]} 16. Be3 {[%clk 0:02:39.4]} 16... Nc5 {[%clk 0:02:26.1]} 17. Rab1
{[%clk 0:02:16]} 17... Qa5 {[%clk 0:02:23]} 18. Ng3 {[%clk 0:02:15.4]} 18... Kh7
{[%clk 0:02:04.6]} 19. a4 {[%clk 0:02:11.7]} 19... Bd7 {[%clk 0:02:02.6]} 20. f4
{[%clk 0:02:11.7]} 20... Ng4 {[%clk 0:01:55.8]} 21. fxe5 {[%clk 0:02:07.8]}
21... Nxe5 {[%clk 0:01:56]} 22. Bd4 {[%clk 0:01:58.9]} 22... f6 {[%clk
0:01:50.9]} 23. h4 {[%clk 0:01:50.7]} 23... Rab8 {[%clk 0:01:49.5]} 24. h5
{[%clk 0:01:45.7]} 24... Bg4 {[%clk 0:01:40.3]} 25. Qe3 {[%clk 0:01:40.1]} 25...
Ncd3 {[%clk 0:01:17.3]} 26. Bxd3 {[%clk 0:01:29.5]} 26... cxd3 {[%clk
0:01:13.1]} 27. Bxe5 {[%clk 0:01:12.1]} 27... fxe5 {[%clk 0:01:11.1]} 28. Rxb8
{[%clk 0:01:04.1]} 28... Rxb8 {[%clk 0:01:11.2]} 29. Qxd3 {[%clk 0:01:05.5]}
29... Qxa4 {[%clk 0:01:09.5]} 30. Nf5 {[%clk 0:01:04.9]} 30... Bxf5 {[%clk
0:01:00.8]} 31. exf5 {[%clk 0:01:05.4]} 31... e4 {[%clk 0:00:56.8]} 32. Qg3
{[%clk 0:01:04.7]} 32... Qe8 {[%clk 0:00:43.4]} 33. Qg6+ {[%clk 0:01:05.5]}
33... Kg8 {[%clk 0:00:33.2]} 34. Qxd6 {[%clk 0:01:05.7]} 34... Rb6 {[%clk
0:00:28.5]} 35. Qf4 {[%clk 0:01:00.5]} 35... Qxh5 {[%clk 0:00:26.8]} 36. Qxe4
{[%clk 0:00:59.5]} 36... Rb2 {[%clk 0:00:27.4]} 37. f6 {[%clk 0:00:54]} 37...
gxf6 {[%clk 0:00:12.2]} 38. Qe6+ {[%clk 0:00:54.1]} 38... Kh7 {[%clk 0:00:10.5]}
39. Qe7+ {[%clk 0:00:53.9]} 39... Kg8 {[%clk 0:00:11]} 40. Qe6+ {[%clk
0:00:43.6]} 40... Kh7 {[%clk 0:00:11.4]} 41. Qxf6 {[%clk 0:00:38.9]} 41... Rb7
{[%clk 0:00:07.3]} 42. Qf5+ {[%clk 0:00:36]} 42... Qg6 {[%clk 0:00:07.9]} 43.
Qxg6+ {[%clk 0:00:35.5]} 43... Kxg6 {[%clk 0:00:09.8]} 44. c4 {[%clk 0:00:34.8]}
44... Rc7 {[%clk 0:00:10.1]} 45. Rc1 {[%clk 0:00:35.2]} 45... Kf5 {[%clk
0:00:11.6]} 46. Kf2 {[%clk 0:00:36.3]} 46... Ke4 {[%clk 0:00:12.7]} 47. d6
{[%clk 0:00:35.8]} 47... Rf7+ {[%clk 0:00:06.3]} 48. Ke2 {[%clk 0:00:36.2]}
48... Ke5 {[%clk 0:00:06.6]} 49. c5 {[%clk 0:00:36.6]} 49... Ke6 {[%clk
0:00:03.7]} 50. Kd3 {[%clk 0:00:32.2]} 50... Kd7 {[%clk 0:00:04.1]} 51. Kd4
{[%clk 0:00:30.3]} 51... Rf8 {[%clk 0:00:03.7]} 52. Ra1 {[%clk 0:00:28.9]} 52...
Rf4+ {[%clk 0:00:04.6]} 53. Ke5 {[%clk 0:00:28.5]} 53... Rg4 {[%clk 0:00:05.3]}
54. Rxa7+ {[%clk 0:00:28.2]} 54... Kd8 {[%clk 0:00:06.6]} 55. c6 {[%clk
0:00:27.8]} 55... Rg5+ {[%clk 0:00:07.9]} 56. Kf6 {[%clk 0:00:28]} 1-0